[Event "Titled Tuesday Blitz February 07 Early 2023"]
[White "Rakhmatullaev, Almas"]
[Black "Seemann, Jakub"]
[WhiteFideId "14205793"]
[BlackFideId "21874697"]
[WhiteElo "2275"]
[BlackElo "2446"]
[Result "0-1"]
[Round "05"]
[TimeControl "180+2"]
[Date "2023.02.07"]
[WhiteClock "0:00:03"]
[BlackClock "0:00:05"]

1. e4 {[%clk 0:03:00]}  e6 {[%clk 0:02:56]} 2. d4 {[%clk 0:03:00]}  d5 {[%clk 0:02:55]} 3. Nc3 {[%clk 0:03:01]}  Nf6 {[%clk 0:02:54]} 4. Bg5 {[%clk 0:02:59]}  dxe4 {[%clk 0:02:54]} 5. Nxe4 {[%clk 0:02:57]}  Nbd7 {[%clk 0:02:54]} 6. Nf3 {[%clk 0:02:52]}  h6 {[%clk 0:02:53]} 7. Bxf6 {[%clk 0:02:50]}  Nxf6 {[%clk 0:02:54]} 8. Bd3 {[%clk 0:02:51]}  c5 {[%clk 0:02:52]} 9. dxc5 {[%clk 0:02:45]}  Nxe4 {[%clk 0:02:14]} 10. Bxe4 {[%clk 0:02:46]}  Bxc5 {[%clk 0:02:09]} 11. Qxd8+ {[%clk 0:02:38]}  Kxd8 {[%clk 0:02:10]} 12. Rd1+ {[%clk 0:02:38]}  Ke7 {[%clk 0:02:09]} 13. c3 {[%clk 0:02:38]}  Rb8 {[%clk 0:02:00]} 14. O-O {[%clk 0:02:38]}  Bd7 {[%clk 0:01:59]} 15. b4 {[%clk 0:02:15]}  Bb6 {[%clk 0:01:57]} 16. c4 {[%clk 0:02:10]}  Rhd8 {[%clk 0:01:41]} 17. c5 {[%clk 0:01:47]}  Bc7 {[%clk 0:01:40]} 18. g3 {[%clk 0:01:05]}  f5 {[%clk 0:01:29]} 19. Bc2 {[%clk 0:00:58]}  Bc6 {[%clk 0:01:20]} 20. Nd4 {[%clk 0:00:57]}  Bd5 {[%clk 0:01:18]} 21. Rfe1 {[%clk 0:00:56]}  Kf6 {[%clk 0:01:17]} 22. Bb3 {[%clk 0:00:56]}  Bxb3 {[%clk 0:01:09]} 23. axb3 {[%clk 0:00:55]}  Be5 {[%clk 0:00:59]} 24. Ne2 {[%clk 0:00:43]}  g5 {[%clk 0:00:40]} 25. Kg2 {[%clk 0:00:38]}  Bb2 {[%clk 0:00:38]} 26. h4 {[%clk 0:00:22]}  e5 {[%clk 0:00:33]} 27. hxg5+ {[%clk 0:00:22]}  hxg5 {[%clk 0:00:34]} 28. Rh1 {[%clk 0:00:19]}  Kg6 {[%clk 0:00:33]} 29. b5 {[%clk 0:00:14]}  e4 {[%clk 0:00:24]} 30. c6 {[%clk 0:00:11]}  bxc6 {[%clk 0:00:20]} 31. bxc6 {[%clk 0:00:12]}  Rbc8 {[%clk 0:00:20]} 32. Rd7 {[%clk 0:00:04]}  Rxd7 {[%clk 0:00:17]} 33. cxd7 {[%clk 0:00:05]}  Rd8 {[%clk 0:00:17]} 34. Rd1 {[%clk 0:00:06]}  Kf6 {[%clk 0:00:17]} 35. Rd6+ {[%clk 0:00:04]}  Ke7 {[%clk 0:00:16]} 36. Rg6 {[%clk 0:00:04]}  Bf6 {[%clk 0:00:16]} 37. g4 {[%clk 0:00:04]}  f4 {[%clk 0:00:15]} 38. f3 {[%clk 0:00:03]}  Kf7 {[%clk 0:00:14]} 39. Rh6 {[%clk 0:00:02]}  Kg7 {[%clk 0:00:14]} 40. Rh1 {[%clk 0:00:02]}  exf3+ {[%clk 0:00:14]} 41. Kxf3 {[%clk 0:00:03]}  Rxd7 {[%clk 0:00:15]} 42. Ke4 {[%clk 0:00:03]}  Re7+ {[%clk 0:00:15]} 43. Kf3 {[%clk 0:00:03]}  Re3+ {[%clk 0:00:14]} 44. Kf2 {[%clk 0:00:03]}  Rxb3 {[%clk 0:00:15]} 45. Rd1 {[%clk 0:00:03]}  Rb7 {[%clk 0:00:14]} 46. Kf3 {[%clk 0:00:03]}  Re7 {[%clk 0:00:14]} 47. Ng1 {[%clk 0:00:03]}  a5 {[%clk 0:00:12]} 48. Rd5 {[%clk 0:00:02]}  a4 {[%clk 0:00:12]} 49. Ra5 {[%clk 0:00:02]}  Re3+ {[%clk 0:00:08]} 50. Kf2 {[%clk 0:00:02]}  Re4 {[%clk 0:00:06]} 51. Kf3 {[%clk 0:00:02]}  Rb4 {[%clk 0:00:07]} 52. Ne2 {[%clk 0:00:02]}  Rb3+ {[%clk 0:00:07]} 53. Kf2 {[%clk 0:00:03]}  a3 {[%clk 0:00:07]} 54. Nc1 {[%clk 0:00:03]}  Rb2+ {[%clk 0:00:07]} 55. Kf3 {[%clk 0:00:03]}  Rc2 {[%clk 0:00:07]} 56. Nd3 {[%clk 0:00:04]}  Rc3 {[%clk 0:00:07]} 57. Ke4 {[%clk 0:00:04]}  f3 {[%clk 0:00:07]} 58. Ra7+ {[%clk 0:00:03]}  Kg6 {[%clk 0:00:07]} 59. Ra6 {[%clk 0:00:04]}  Kf7 {[%clk 0:00:04]} 60. Ra7+ {[%clk 0:00:04]}  Ke6 {[%clk 0:00:05]} 61. Ra6+ {[%clk 0:00:04]}  Ke7 {[%clk 0:00:05]} 62. Ra7+ {[%clk 0:00:04]}  Ke6 {[%clk 0:00:04]} 63. Ra6+ {[%clk 0:00:05]}  Kf7 {[%clk 0:00:04]} 64. Ra7+ {[%clk 0:00:06]}  Kg8 {[%clk 0:00:05]} 65. Ra6 {[%clk 0:00:04]}  Bg7 {[%clk 0:00:05]} 66. Nf2 {[%clk 0:00:02]}  Rb3 {[%clk 0:00:05]} 67. Nd3 {[%clk 0:00:02]}  f2 {[%clk 0:00:03]} 68. Nxf2 {[%clk 0:00:02]}  Rb2 {[%clk 0:00:03]} 69. Nd3 {[%clk 0:00:02]}  Re2+ {[%clk 0:00:04]} 70. Kf5 {[%clk 0:00:02]}  a2 {[%clk 0:00:03]} 71. Nc1 {[%clk 0:00:02]}  Rf2+ {[%clk 0:00:03]} 72. Kg6 {[%clk 0:00:02]}  a1=Q {[%clk 0:00:04]} 73. Rxa1 {[%clk 0:00:02]}  Bxa1 {[%clk 0:00:05]} 74. Nd3 {[%clk 0:00:03]}  Rf3 {[%clk 0:00:05]} 75. Nc5 {[%clk 0:00:03]}  Bd4 {[%clk 0:00:05]} 76. Ne6 {[%clk 0:00:03]}  Rf6+ {[%clk 0:00:05]} 0-1


[Site "https://www.chess.com"]

[Event "Titled Tuesday Blitz February 07 Early 2023"]
[White "Kukhmazov, Arsen"]
[Black "Shapiro, Viktor"]
[WhiteFideId "24108260"]
[BlackFideId "4175700"]
[WhiteElo "2512"]
[BlackElo "2192"]
[Result "1-0"]
[Round "05"]
[TimeControl "180+2"]
[Date "2023.02.07"]
[WhiteClock "0:00:36"]
[BlackClock "0:00:11"]

1. b3 {[%clk 0:02:52]}  Nf6 {[%clk 0:03:00]} 2. Bb2 {[%clk 0:02:52]}  d5 {[%clk 0:03:00]} 3. e3 {[%clk 0:02:51]}  Bf5 {[%clk 0:03:01]} 4. f4 {[%clk 0:02:49]}  e6 {[%clk 0:02:59]} 5. Nf3 {[%clk 0:02:49]}  Nbd7 {[%clk 0:02:59]} 6. Bd3 {[%clk 0:02:45]}  Bxd3 {[%clk 0:02:54]} 7. cxd3 {[%clk 0:02:46]}  Be7 {[%clk 0:02:52]} 8. O-O {[%clk 0:02:46]}  O-O {[%clk 0:02:52]} 9. Qe2 {[%clk 0:02:47]}  a5 {[%clk 0:02:51]} 10. Nc3 {[%clk 0:02:47]}  Nc5 {[%clk 0:02:46]} 11. Ne5 {[%clk 0:02:44]}  a4 {[%clk 0:02:43]} 12. bxa4 {[%clk 0:02:44]}  Nxa4 {[%clk 0:02:43]} 13. Nxa4 {[%clk 0:02:45]}  Rxa4 {[%clk 0:02:44]} 14. f5 {[%clk 0:02:42]}  Bd6 {[%clk 0:02:26]} 15. d4 {[%clk 0:02:28]}  Qe7 {[%clk 0:02:18]} 16. Ng4 {[%clk 0:02:11]}  Nxg4 {[%clk 0:02:09]} 17. Qxg4 {[%clk 0:02:12]}  exf5 {[%clk 0:02:08]} 18. Qxf5 {[%clk 0:02:12]}  Qe6 {[%clk 0:02:07]} 19. Qc2 {[%clk 0:02:10]}  Rfa8 {[%clk 0:02:05]} 20. Bc3 {[%clk 0:02:11]}  b5 {[%clk 0:02:01]} 21. Qb3 {[%clk 0:02:06]}  b4 {[%clk 0:01:57]} 22. Bb2 {[%clk 0:02:06]}  h5 {[%clk 0:01:47]} 23. Rf3 {[%clk 0:01:59]}  c6 {[%clk 0:01:44]} 24. d3 {[%clk 0:01:47]}  h4 {[%clk 0:01:25]} 25. h3 {[%clk 0:01:27]}  Qg6 {[%clk 0:01:17]} 26. Kh1 {[%clk 0:01:09]}  R4a7 {[%clk 0:01:16]} 27. Kg1 {[%clk 0:00:54]}  Qe6 {[%clk 0:00:47]} 28. Kf1 {[%clk 0:00:51]}  f6 {[%clk 0:00:38]} 29. e4 {[%clk 0:00:50]}  Ra3 {[%clk 0:00:32]} 30. Bxa3 {[%clk 0:00:48]}  Rxa3 {[%clk 0:00:32]} 31. exd5 {[%clk 0:00:45]}  cxd5 {[%clk 0:00:19]} 32. Qc2 {[%clk 0:00:45]}  b3 {[%clk 0:00:18]} 33. Qb2 {[%clk 0:00:41]}  bxa2 {[%clk 0:00:11]} 34. Rxa2 {[%clk 0:00:42]}  Rxa2 {[%clk 0:00:12]} 35. Qxa2 {[%clk 0:00:43]}  Bf8 {[%clk 0:00:12]} 36. Qe2 {[%clk 0:00:42]}  Qc6 {[%clk 0:00:12]} 37. Re3 {[%clk 0:00:36]}  Bd6 {[%clk 0:00:12]} 38. Re8+ {[%clk 0:00:34]}  Bf8 {[%clk 0:00:10]} 39. Qe6+ {[%clk 0:00:34]}  Qxe6 {[%clk 0:00:11]} 40. Rxe6 {[%clk 0:00:35]}  Kf7 {[%clk 0:00:11]} 41. Ra6 {[%clk 0:00:35]}  Bb4 {[%clk 0:00:11]} 42. Ke2 {[%clk 0:00:35]}  Bc3 {[%clk 0:00:10]} 43. Ke3 {[%clk 0:00:36]}  Be1 {[%clk 0:00:11]} 44. Rd6 {[%clk 0:00:35]}  Bg3 {[%clk 0:00:11]} 45. Rxd5 {[%clk 0:00:35]}  g5 {[%clk 0:00:11]} 46. Ke4 {[%clk 0:00:34]}  Ke6 {[%clk 0:00:11]} 47. Rf5 {[%clk 0:00:35]}  Bf4 {[%clk 0:00:10]} 48. d5+ {[%clk 0:00:36]}  Ke7 {[%clk 0:00:11]} 49. Rxf4 {[%clk 0:00:35]}  gxf4 {[%clk 0:00:11]} 50. Kxf4 {[%clk 0:00:36]} 1-0


[Site "https://www.chess.com"]

[Event "Titled Tuesday Blitz February 07 Early 2023"]
[White "Fier, Alexandr"]
[Black "Korchmar, Vasiliy"]
[WhiteFideId "2107139"]
[BlackFideId "24131750"]
[WhiteElo "2589"]
[BlackElo "2438"]
[Result "1-0"]
[Round "05"]
[TimeControl "180+2"]
[Date "2023.02.07"]
[WhiteClock "0:02:07"]
[BlackClock "0:00:51"]

1. d4 {[%clk 0:02:40]}  d5 {[%clk 0:02:59]} 2. c4 {[%clk 0:02:40]}  c6 {[%clk 0:02:59]} 3. cxd5 {[%clk 0:02:41]}  cxd5 {[%clk 0:03:00]} 4. Bf4 {[%clk 0:02:41]}  Nf6 {[%clk 0:03:00]} 5. e3 {[%clk 0:02:41]}  Nc6 {[%clk 0:03:00]} 6. Nc3 {[%clk 0:02:42]}  a6 {[%clk 0:03:01]} 7. Be2 {[%clk 0:02:42]}  Bf5 {[%clk 0:03:00]} 8. g4 {[%clk 0:02:42]}  Be6 {[%clk 0:02:43]} 9. h4 {[%clk 0:02:38]}  h6 {[%clk 0:02:26]} 10. Bf3 {[%clk 0:02:37]}  g6 {[%clk 0:02:22]} 11. g5 {[%clk 0:02:26]}  hxg5 {[%clk 0:02:23]} 12. hxg5 {[%clk 0:02:26]}  Rxh1 {[%clk 0:02:23]} 13. Bxh1 {[%clk 0:02:27]}  Nh5 {[%clk 0:02:16]} 14. Bh2 {[%clk 0:02:28]}  Ng7 {[%clk 0:01:33]} 15. Nge2 {[%clk 0:02:21]}  Bg4 {[%clk 0:01:23]} 16. Nxd5 {[%clk 0:02:18]}  Ne6 {[%clk 0:01:19]} 17. Qb3 {[%clk 0:02:13]}  Qa5+ {[%clk 0:01:06]} 18. Nec3 {[%clk 0:02:12]}  b5 {[%clk 0:00:56]} 19. Nf6+ {[%clk 0:02:08]}  exf6 {[%clk 0:00:52]} 20. Bxc6+ {[%clk 0:02:07]}  Kd8 {[%clk 0:00:51]} 21. Bxa8 {[%clk 0:02:07]}  Nxg5 {[%clk 0:00:51]} 22. Qd5+ {[%clk 0:02:07]} 1-0


[Site "https://www.chess.com"]

[Event "Titled Tuesday Blitz February 07 Early 2023"]
[White "Iniyan, P"]
[Black "Plazuelo Pascual, Juan"]
[WhiteFideId "25002767"]
[BlackFideId "32059566"]
[WhiteElo "2525"]
[BlackElo "2449"]
[Result "1-0"]
[Round "05"]
[TimeControl "180+2"]
[Date "2023.02.07"]
[WhiteClock "0:00:13"]
[BlackClock "0:00:05"]

1. b3 {[%clk 0:03:00]}  e5 {[%clk 0:02:59]} 2. Bb2 {[%clk 0:02:59]}  Nc6 {[%clk 0:02:59]} 3. c4 {[%clk 0:02:59]}  g6 {[%clk 0:02:42]} 4. g3 {[%clk 0:02:46]}  Bg7 {[%clk 0:02:42]} 5. Bg2 {[%clk 0:02:47]}  d6 {[%clk 0:02:43]} 6. Nf3 {[%clk 0:02:40]}  Nge7 {[%clk 0:02:31]} 7. O-O {[%clk 0:02:40]}  O-O {[%clk 0:02:31]} 8. Nc3 {[%clk 0:02:40]}  h6 {[%clk 0:02:25]} 9. a3 {[%clk 0:02:37]}  Be6 {[%clk 0:02:25]} 10. d3 {[%clk 0:02:33]}  Qd7 {[%clk 0:02:25]} 11. Re1 {[%clk 0:02:32]}  Bh3 {[%clk 0:02:22]} 12. Bh1 {[%clk 0:02:31]}  a5 {[%clk 0:02:21]} 13. Nd5 {[%clk 0:02:26]}  Nxd5 {[%clk 0:02:07]} 14. cxd5 {[%clk 0:02:27]}  Ne7 {[%clk 0:02:08]} 15. Nd2 {[%clk 0:02:08]}  c6 {[%clk 0:02:07]} 16. dxc6 {[%clk 0:02:06]}  bxc6 {[%clk 0:02:08]} 17. Qc2 {[%clk 0:02:05]}  Ra7 {[%clk 0:01:49]} 18. b4 {[%clk 0:02:02]}  axb4 {[%clk 0:01:44]} 19. axb4 {[%clk 0:02:03]}  Rb7 {[%clk 0:01:44]} 20. Bc3 {[%clk 0:01:57]}  Nd5 {[%clk 0:01:44]} 21. Bxd5 {[%clk 0:01:41]}  cxd5 {[%clk 0:01:45]} 22. Nb3 {[%clk 0:01:40]}  Rc8 {[%clk 0:01:44]} 23. Qd2 {[%clk 0:01:39]}  Rbc7 {[%clk 0:01:28]} 24. Rec1 {[%clk 0:01:37]}  d4 {[%clk 0:01:10]} 25. Bb2 {[%clk 0:01:37]}  Qe6 {[%clk 0:01:09]} 26. Na5 {[%clk 0:01:30]}  h5 {[%clk 0:00:59]} 27. Rxc7 {[%clk 0:01:01]}  Rxc7 {[%clk 0:01:00]} 28. Rc1 {[%clk 0:01:01]}  Rxc1+ {[%clk 0:00:42]} 29. Bxc1 {[%clk 0:01:02]}  e4 {[%clk 0:00:25]} 30. dxe4 {[%clk 0:00:38]}  Qxe4 {[%clk 0:00:26]} 31. f3 {[%clk 0:00:39]}  Qb1 {[%clk 0:00:25]} 32. Nc6 {[%clk 0:00:26]}  Kh7 {[%clk 0:00:13]} 33. Kf2 {[%clk 0:00:25]}  Bd7 {[%clk 0:00:07]} 34. Ne7 {[%clk 0:00:20]}  d3 {[%clk 0:00:05]} 35. exd3 {[%clk 0:00:19]}  Bb5 {[%clk 0:00:04]} 36. Ke2 {[%clk 0:00:10]}  Qb3 {[%clk 0:00:03]} 37. Qe3 {[%clk 0:00:05]}  d5 {[%clk 0:00:03]} 38. Bd2 {[%clk 0:00:06]}  d4 {[%clk 0:00:04]} 39. Qe4 {[%clk 0:00:06]}  Bd7 {[%clk 0:00:02]} 40. Nd5 {[%clk 0:00:06]}  Be6 {[%clk 0:00:01]} 41. Nf4 {[%clk 0:00:06]}  Qa2 {[%clk 0:00:02]} 42. Nxe6 {[%clk 0:00:06]}  fxe6 {[%clk 0:00:03]} 43. f4 {[%clk 0:00:06]}  e5 {[%clk 0:00:03]} 44. f5 {[%clk 0:00:04]}  gxf5 {[%clk 0:00:02]} 45. Qxf5+ {[%clk 0:00:05]}  Kg8 {[%clk 0:00:03]} 46. Qc8+ {[%clk 0:00:05]}  Kh7 {[%clk 0:00:03]} 47. Qf5+ {[%clk 0:00:05]}  Kg8 {[%clk 0:00:04]} 48. Qxh5 {[%clk 0:00:06]}  Qd5 {[%clk 0:00:04]} 49. Qe8+ {[%clk 0:00:06]}  Kh7 {[%clk 0:00:04]} 50. Qh5+ {[%clk 0:00:07]}  Kg8 {[%clk 0:00:05]} 51. Qf3 {[%clk 0:00:07]}  Qb5 {[%clk 0:00:04]} 52. g4 {[%clk 0:00:08]}  Bf8 {[%clk 0:00:04]} 53. Qf5 {[%clk 0:00:07]}  Bxb4 {[%clk 0:00:04]} 54. Bxb4 {[%clk 0:00:08]}  Qxb4 {[%clk 0:00:04]} 55. Qg5+ {[%clk 0:00:09]}  Kf7 {[%clk 0:00:04]} 56. Qxe5 {[%clk 0:00:09]}  Qb2+ {[%clk 0:00:04]} 57. Kf3 {[%clk 0:00:10]}  Qc3 {[%clk 0:00:04]} 58. Qf5+ {[%clk 0:00:10]}  Kg7 {[%clk 0:00:05]} 59. h4 {[%clk 0:00:11]}  Qd2 {[%clk 0:00:04]} 60. Qg5+ {[%clk 0:00:11]}  Qxg5 {[%clk 0:00:04]} 61. hxg5 {[%clk 0:00:12]}  Kg6 {[%clk 0:00:05]} 62. Kf4 {[%clk 0:00:13]} 1-0


[Site "https://www.chess.com"]

[Event "Titled Tuesday Blitz February 07 Early 2023"]
[White "Olenik Campa, Rudi"]
[Black "Zemlyanskii, Ivan"]
[WhiteFideId "14633264"]
[BlackFideId "24249971"]
[WhiteElo "2356"]
[BlackElo "2300"]
[Result "0-1"]
[Round "05"]
[TimeControl "180+2"]
[Date "2023.02.07"]
[WhiteClock "0:00:06"]
[BlackClock "0:00:08"]

1. e4 {[%clk 0:02:55]}  Nc6 {[%clk 0:02:59]} 2. Nf3 {[%clk 0:02:54]}  d5 {[%clk 0:02:59]} 3. exd5 {[%clk 0:02:54]}  Qxd5 {[%clk 0:02:59]} 4. Nc3 {[%clk 0:02:54]}  Qd6 {[%clk 0:02:56]} 5. d4 {[%clk 0:02:54]}  Nf6 {[%clk 0:02:56]} 6. Bb5 {[%clk 0:02:52]}  a6 {[%clk 0:02:49]} 7. Be2 {[%clk 0:02:49]}  Bf5 {[%clk 0:02:45]} 8. O-O {[%clk 0:02:48]}  e6 {[%clk 0:02:43]} 9. Bg5 {[%clk 0:02:47]}  Be7 {[%clk 0:02:43]} 10. a3 {[%clk 0:02:44]}  O-O {[%clk 0:02:38]} 11. Bd3 {[%clk 0:02:34]}  Bg4 {[%clk 0:02:20]} 12. Bxf6 {[%clk 0:02:28]}  Bxf6 {[%clk 0:02:20]} 13. Ne4 {[%clk 0:02:28]}  Qe7 {[%clk 0:02:19]} 14. c3 {[%clk 0:02:23]}  Rfd8 {[%clk 0:02:16]} 15. h3 {[%clk 0:02:21]}  Bf5 {[%clk 0:02:03]} 16. Nxf6+ {[%clk 0:02:19]}  Qxf6 {[%clk 0:02:02]} 17. Bxf5 {[%clk 0:02:19]}  Qxf5 {[%clk 0:02:03]} 18. Qe2 {[%clk 0:02:19]}  b5 {[%clk 0:01:55]} 19. Rad1 {[%clk 0:02:14]}  Qd5 {[%clk 0:01:53]} 20. Ne5 {[%clk 0:02:02]}  Nxe5 {[%clk 0:01:36]} 21. dxe5 {[%clk 0:02:01]}  Qb3 {[%clk 0:01:27]} 22. f4 {[%clk 0:01:34]}  h6 {[%clk 0:01:16]} 23. Kh1 {[%clk 0:01:28]}  a5 {[%clk 0:01:07]} 24. Kg1 {[%clk 0:01:13]}  b4 {[%clk 0:01:06]} 25. axb4 {[%clk 0:00:50]}  axb4 {[%clk 0:01:06]} 26. Rxd8+ {[%clk 0:00:33]}  Rxd8 {[%clk 0:01:07]} 27. Qb5 {[%clk 0:00:32]}  Qxb2 {[%clk 0:00:56]} 28. cxb4 {[%clk 0:00:19]}  Rd2 {[%clk 0:00:50]} 29. Qc6 {[%clk 0:00:19]}  Rc2 {[%clk 0:00:42]} 30. Qa8+ {[%clk 0:00:19]}  Kh7 {[%clk 0:00:37]} 31. Qe4+ {[%clk 0:00:20]}  g6 {[%clk 0:00:36]} 32. b5 {[%clk 0:00:19]}  Rd2 {[%clk 0:00:27]} 33. Qc6 {[%clk 0:00:19]}  Rc2 {[%clk 0:00:21]} 34. Qe4 {[%clk 0:00:18]}  Rc5 {[%clk 0:00:20]} 35. h4 {[%clk 0:00:15]}  Qxb5 {[%clk 0:00:13]} 36. h5 {[%clk 0:00:15]}  Qc6 {[%clk 0:00:13]} 37. hxg6+ {[%clk 0:00:15]}  fxg6 {[%clk 0:00:11]} 38. Qxc6 {[%clk 0:00:13]}  Rxc6 {[%clk 0:00:11]} 39. Kf2 {[%clk 0:00:13]}  g5 {[%clk 0:00:10]} 40. fxg5 {[%clk 0:00:09]}  hxg5 {[%clk 0:00:11]} 41. g4 {[%clk 0:00:08]}  Rc5 {[%clk 0:00:10]} 42. Re1 {[%clk 0:00:08]}  Kg6 {[%clk 0:00:11]} 43. Kf3 {[%clk 0:00:08]}  Rd5 {[%clk 0:00:11]} 44. Rc1 {[%clk 0:00:06]}  c5 {[%clk 0:00:12]} 45. Ke4 {[%clk 0:00:06]}  Rd4+ {[%clk 0:00:12]} 46. Kf3 {[%clk 0:00:05]}  Rf4+ {[%clk 0:00:11]} 47. Kg3 {[%clk 0:00:05]}  c4 {[%clk 0:00:09]} 48. Rc3 {[%clk 0:00:04]}  Kf7 {[%clk 0:00:09]} 49. Rc1 {[%clk 0:00:04]}  Ke7 {[%clk 0:00:10]} 50. Rd1 {[%clk 0:00:05]}  c3 {[%clk 0:00:10]} 51. Rc1 {[%clk 0:00:05]}  Rc4 {[%clk 0:00:07]} 52. Kf3 {[%clk 0:00:05]}  Kd7 {[%clk 0:00:08]} 53. Ke3 {[%clk 0:00:06]}  Kc6 {[%clk 0:00:09]} 54. Kd3 {[%clk 0:00:06]}  Kd5 {[%clk 0:00:09]} 55. Re1 {[%clk 0:00:04]}  c2 {[%clk 0:00:10]} 56. Kd2 {[%clk 0:00:05]}  c1=Q+ {[%clk 0:00:06]} 57. Rxc1 {[%clk 0:00:05]}  Rxc1 {[%clk 0:00:07]} 58. Kxc1 {[%clk 0:00:06]}  Kxe5 {[%clk 0:00:08]} 0-1


[Site "https://www.chess.com"]

[Event "Titled Tuesday Blitz February 07 Early 2023"]
[White "Ladan, Nicholas"]
[Black "Beerdsen, Thomas"]
[WhiteFideId "30918855"]
[BlackFideId "1030108"]
[WhiteElo "2228"]
[BlackElo "2507"]
[Result "0-1"]
[Round "05"]
[TimeControl "180+2"]
[Date "2023.02.07"]
[WhiteClock "0:00:06"]
[BlackClock "0:00:05"]

1. d4 {[%clk 0:03:00]}  Nf6 {[%clk 0:02:55]} 2. Bf4 {[%clk 0:03:00]}  g6 {[%clk 0:02:52]} 3. Nc3 {[%clk 0:03:00]}  c6 {[%clk 0:02:52]} 4. e4 {[%clk 0:03:01]}  d5 {[%clk 0:02:52]} 5. e5 {[%clk 0:03:00]}  Nh5 {[%clk 0:02:53]} 6. Be3 {[%clk 0:02:58]}  Ng7 {[%clk 0:02:52]} 7. Bd3 {[%clk 0:02:53]}  Nf5 {[%clk 0:02:51]} 8. Qd2 {[%clk 0:02:50]}  Nxe3 {[%clk 0:02:50]} 9. Qxe3 {[%clk 0:02:51]}  b5 {[%clk 0:02:47]} 10. f4 {[%clk 0:02:49]}  b4 {[%clk 0:02:45]} 11. Nce2 {[%clk 0:02:44]}  e6 {[%clk 0:02:45]} 12. Nf3 {[%clk 0:02:43]}  Qb6 {[%clk 0:02:39]} 13. c3 {[%clk 0:02:40]}  c5 {[%clk 0:02:39]} 14. O-O {[%clk 0:02:36]}  Nc6 {[%clk 0:02:39]} 15. Rad1 {[%clk 0:02:15]}  a5 {[%clk 0:02:31]} 16. Bb1 {[%clk 0:02:14]}  Ba6 {[%clk 0:02:30]} 17. Rf2 {[%clk 0:02:10]}  Rb8 {[%clk 0:02:26]} 18. h4 {[%clk 0:02:04]}  a4 {[%clk 0:02:14]} 19. h5 {[%clk 0:01:38]}  a3 {[%clk 0:02:10]} 20. Ng5 {[%clk 0:01:24]}  axb2 {[%clk 0:02:03]} 21. Qh3 {[%clk 0:01:22]}  Bg7 {[%clk 0:01:39]} 22. f5 {[%clk 0:01:05]}  gxf5 {[%clk 0:01:27]} 23. h6 {[%clk 0:00:47]}  Bf8 {[%clk 0:01:22]} 24. Qh5 {[%clk 0:00:41]}  Nd8 {[%clk 0:01:20]} 25. Nf4 {[%clk 0:00:30]}  Rb7 {[%clk 0:01:05]} 26. Bxf5 {[%clk 0:00:25]}  exf5 {[%clk 0:01:01]} 27. e6 {[%clk 0:00:25]}  bxc3 {[%clk 0:00:54]} 28. Nxd5 {[%clk 0:00:17]}  b1=Q {[%clk 0:00:52]} 29. Nf6+ {[%clk 0:00:16]}  Ke7 {[%clk 0:00:52]} 30. Nd5+ {[%clk 0:00:14]}  Kd6 {[%clk 0:00:53]} 31. Nxc3 {[%clk 0:00:12]}  Qxd1+ {[%clk 0:00:49]} 32. Qxd1 {[%clk 0:00:12]}  cxd4 {[%clk 0:00:50]} 33. Rd2 {[%clk 0:00:09]}  Nxe6 {[%clk 0:00:48]} 34. Nxe6 {[%clk 0:00:09]}  Kxe6 {[%clk 0:00:49]} 35. Rxd4 {[%clk 0:00:09]}  Bc5 {[%clk 0:00:50]} 36. Qe1+ {[%clk 0:00:08]}  Kf6 {[%clk 0:00:41]} 37. Nd5+ {[%clk 0:00:08]}  Kg6 {[%clk 0:00:41]} 38. Nxb6 {[%clk 0:00:06]}  Bxd4+ {[%clk 0:00:40]} 39. Kh2 {[%clk 0:00:06]}  Rxb6 {[%clk 0:00:34]} 40. Qg3+ {[%clk 0:00:06]}  Kxh6 {[%clk 0:00:26]} 41. Qh4+ {[%clk 0:00:06]}  Kg6 {[%clk 0:00:27]} 42. Qxd4 {[%clk 0:00:06]}  Rhb8 {[%clk 0:00:27]} 43. a4 {[%clk 0:00:06]}  Re6 {[%clk 0:00:20]} 44. a5 {[%clk 0:00:06]}  Rb5 {[%clk 0:00:18]} 45. Qd8 {[%clk 0:00:05]}  h5 {[%clk 0:00:17]} 46. Qg8+ {[%clk 0:00:05]}  Kf6 {[%clk 0:00:17]} 47. Qh8+ {[%clk 0:00:05]}  Ke7 {[%clk 0:00:17]} 48. Qxh5 {[%clk 0:00:06]}  Rxa5 {[%clk 0:00:17]} 49. Qg5+ {[%clk 0:00:06]}  Kd7 {[%clk 0:00:16]} 50. Qd2+ {[%clk 0:00:07]}  Rd5 {[%clk 0:00:13]} 51. Qxd5+ {[%clk 0:00:07]}  Ke7 {[%clk 0:00:13]} 52. Qxf5 {[%clk 0:00:07]}  Ke8 {[%clk 0:00:11]} 53. Qc5 {[%clk 0:00:06]}  Kd7 {[%clk 0:00:10]} 54. Qa7+ {[%clk 0:00:06]}  Ke8 {[%clk 0:00:11]} 55. Qb8+ {[%clk 0:00:07]}  Ke7 {[%clk 0:00:11]} 56. Kh3 {[%clk 0:00:07]}  Be2 {[%clk 0:00:10]} 57. Qc7+ {[%clk 0:00:07]}  Kf6 {[%clk 0:00:11]} 58. Qf4+ {[%clk 0:00:07]}  Kg6 {[%clk 0:00:11]} 59. Kh4 {[%clk 0:00:06]}  f5 {[%clk 0:00:08]} 60. Qg5+ {[%clk 0:00:06]}  Kf7 {[%clk 0:00:07]} 61. Qxf5+ {[%clk 0:00:06]}  Ke7 {[%clk 0:00:08]} 62. Qh7+ {[%clk 0:00:07]}  Kd6 {[%clk 0:00:07]} 63. Qf5 {[%clk 0:00:07]}  Bc4 {[%clk 0:00:06]} 64. Qf4+ {[%clk 0:00:06]}  Kd5 {[%clk 0:00:07]} 65. g4 {[%clk 0:00:06]}  Re4 {[%clk 0:00:07]} 66. Qf5+ {[%clk 0:00:06]}  Kd4 {[%clk 0:00:08]} 67. Kh5 {[%clk 0:00:05]}  Be6 {[%clk 0:00:08]} 68. Qf2+ {[%clk 0:00:05]}  Ke5 {[%clk 0:00:08]} 69. g5 {[%clk 0:00:05]}  Rf4 {[%clk 0:00:07]} 70. Qe3+ {[%clk 0:00:05]}  Re4 {[%clk 0:00:07]} 71. Qc3+ {[%clk 0:00:05]}  Kf4 {[%clk 0:00:07]} 72. Qf6+ {[%clk 0:00:06]}  Bf5 {[%clk 0:00:07]} 73. g6 {[%clk 0:00:06]}  Re3 {[%clk 0:00:06]} 74. Kh6 {[%clk 0:00:06]}  Rh3+ {[%clk 0:00:06]} 75. Kg7 {[%clk 0:00:06]}  Rg3 {[%clk 0:00:07]} 76. Qd6+ {[%clk 0:00:05]}  Kf3 {[%clk 0:00:07]} 77. Qa3+ {[%clk 0:00:04]}  Kg2 {[%clk 0:00:06]} 78. Qa8+ {[%clk 0:00:04]}  Kh3 {[%clk 0:00:05]} 79. Kf6 {[%clk 0:00:04]}  Bxg6 {[%clk 0:00:05]} 80. Qh8+ {[%clk 0:00:04]}  Kg2 {[%clk 0:00:05]} 81. Qa8+ {[%clk 0:00:03]}  Kh2 {[%clk 0:00:06]} 82. Qa2+ {[%clk 0:00:04]}  Kh3 {[%clk 0:00:06]} 83. Qa1 {[%clk 0:00:04]}  Be4 {[%clk 0:00:04]} 84. Qf1+ {[%clk 0:00:03]}  Bg2 {[%clk 0:00:04]} 85. Qd1 {[%clk 0:00:02]}  Rf3+ {[%clk 0:00:04]} 86. Kg5 {[%clk 0:00:02]}  Rg3+ {[%clk 0:00:03]} 87. Kh5 {[%clk 0:00:03]}  Bf3+ {[%clk 0:00:04]} 88. Qxf3 {[%clk 0:00:02]}  Rxf3 {[%clk 0:00:05]} 89. Kg5 {[%clk 0:00:02]}  Kg3 {[%clk 0:00:05]} 90. Kh5 {[%clk 0:00:02]}  Rf4 {[%clk 0:00:04]} 91. Kg6 {[%clk 0:00:03]}  Kg4 {[%clk 0:00:05]} 92. Kh6 {[%clk 0:00:04]}  Rf6+ {[%clk 0:00:05]} 93. Kg7 {[%clk 0:00:04]}  Kg5 {[%clk 0:00:05]} 94. Kh7 {[%clk 0:00:05]}  Rf7+ {[%clk 0:00:05]} 95. Kg8 {[%clk 0:00:05]}  Kg6 {[%clk 0:00:05]} 96. Kh8 {[%clk 0:00:06]}  Rf8# {[%clk 0:00:05]} 0-1


[Site "https://www.chess.com"]